bitfinex/quotes_ETHUSD_20241104
["timestamp","ask_amount","ask_price","bid_price","bid_amount"]
[1730697880339,4.8808,2469.2,2468.9,0.31558312]
[1730697880713,8.93079,2469.2,2468.9,0.31558312]
[1730697881334,4.8808,2469.2,2468.9,0.31558312]
[1730697882034,8.9308,2469.2,2468.9,0.31558312]
[1730697883219,4.05007,2469.1,2468.9,0.31558312]
[1730697883737,4.05007,2469.1,2468.6,6.17546186]
[1730697884040,4.05005,2469.1,2468.7,0.32207385]
[1730697887310,0.8148,2469.0,2468.7,0.32207385]
[1730697887845,0.8148,2469.0,2468.8,0.32194396]
[1730697888052,0.486485,2468.9,2468.8,0.32194396]
[1730697888248,4.536985,2468.9,2468.4,2.12461186]
[1730697888551,4.536895,2468.9,2468.4,6.17572186]
[1730697888920,4.05041,2468.9,2468.4,6.17572186]
[1730697889120,4.05041,2468.9,2468.5,0.3036812]
[1730697889740,8.10091,2468.9,2468.5,0.3036812]
[1730697890312,4.05055,2468.8,2468.5,0.3036812]
[1730697890516,4.05079,2468.7,2468.5,0.3036812]
[1730697890735,4.455869,2468.7,2468.4,1.65531186]
[1730697891553,5.270669,2468.7,2468.3,0.4693]
[1730697893851,5.270669,2468.7,2468.3,4.8242544]
[1730697894160,4.86559,2468.7,2468.3,4.52062]
[1730697896649,4.86559,2468.7,2468.3,0.4693]
[1730697896840,8.91639,2468.7,2468.3,0.4693]
[1730697897175,4.86559,2468.7,2468.3,0.4693]
[1730697898570,0.8148,2468.7,2468.4,1.65531186]
[1730697898976,4.86553,2468.7,2468.4,1.65531186]
[1730697899174,5.757134,2468.7,2468.4,1.65531186]
[1730697899770,5.757134,2468.7,2468.5,0.3224032]
[1730697900352,1.706404,2468.7,2468.5,0.3224032]
[1730697900550,4.05051,2468.9,2468.5,4.3734332]
[1730697900745,4.05015,2469.1,2468.8,1.65531186]
[1730697900943,4.05015,2469.1,2468.9,0.32186475]
[1730697901188,4.05015,2469.1,2468.7,0.4693]
[1730697901477,4.05015,2469.1,2468.8,0.32202411]
[1730697901650,4.625953,2469.1,2468.8,0.32202411]
[1730697902280,4.05022,2469.0,2468.8,0.32202411]
[1730697903680,4.05022,2469.0,2468.6,1.65531186]
[1730697903876,4.05058,2468.8,2468.5,0.4693]
[1730697905070,0.8148,2468.9,2468.5,0.4693]
[1730697905269,4.05007,2469.1,2468.8,1.65531186]
[1730697905585,4.05005,2469.1,2468.6,5.70618186]
[1730697907081,0.8148,2469.2,2468.7,4.0507]
[1730697907266,3.8148,2469.2,2468.8,1.65531186]
[1730697907583,7.86478,2469.2,2468.8,1.65531186]
[1730697907952,4.05006,2469.1,2468.8,1.65531186]
[1730697908704,7.8647,2469.2,2468.8,2.12461186]
[1730697910073,4.05015,2469.1,2468.8,2.12461186]
[1730697910274,5.241545,2469.1,2468.8,2.12461186]
[1730697910981,5.241545,2469.1,2468.8,0.4693]
[1730697914697,4.05024,2469.0,2468.8,0.4693]
[1730697914999,4.05024,2469.0,2468.9,0.32183882]
[1730697915493,1.191485,2469.1,2468.9,0.32183882]
[1730697915903,0.63422618,2469.0,2468.9,0.32183882]
[1730697918384,5.2343598,2469.0,2468.9,0.32183882]
[1730697918582,5.2343598,2469.0,2468.6,0.17788862]
[1730697918897,4.05065,2468.8,2468.7,0.32210803]
[1730697919318,4.05065,2468.8,2468.5,0.4693]
[1730697919464,4.05065,2468.8,2468.7,0.32210095]
[1730697919795,1.00798398,2468.8,2468.3,0.28470032]
[1730697919999,4.05081,2468.7,2468.2,6.17604186]
[1730697920305,4.05081,2468.7,2468.3,0.48160411]
[1730697920607,4.05081,2468.7,2468.2,10.22749186]
[1730697920767,4.05081,2468.7,2468.3,0.48158391]
[1730697921092,4.05081,2468.7,2468.2,10.22749186]
[1730697921396,4.05081,2468.7,2468.3,0.48158698]
[1730697921597,4.05081,2468.7,2468.2,10.22749186]
[1730697921773,4.94039,2468.7,2468.3,0.4815693]
[1730697921974,4.94039,2468.7,2468.2,6.17604186]
[1730697922193,0.88958,2468.7,2468.3,0.48157047]
[1730697922364,4.84557,2468.5,2468.1,4.05167]
[1730697923563,4.84557,2468.5,2468.0,6.17645186]
[1730697924197,4.84557,2468.5,2468.0,2.12461186]
[1730697924384,4.84557,2468.5,2468.0,6.17641186]
[1730697926599,8.89671,2468.5,2468.0,6.17641186]
[1730697926822,5.735241,2468.5,2468.0,6.17641186]
[1730697927366,9.786381,2468.5,2468.0,6.17641186]
[1730697927567,5.735241,2468.5,2468.0,6.17641186]
[1730697927861,5.735241,2468.5,2468.0,1.65531186]
[1730697928068,4.05144,2468.3,2468.0,1.65531186]
[1730697928365,4.05144,2468.3,2467.9,4.05201]
[1730697928566,4.05144,2468.3,2468.0,1.65531186]
[1730697928879,5.0301181,2468.3,2468.0,1.65531186]
[1730697929796,5.0301181,2468.3,2468.1,0.32301376]
[1730697931697,0.9786781,2468.3,2468.1,0.32301376]
[1730697933567,0.9786781,2468.3,2467.9,4.05201]
[1730697933767,0.9786781,2468.3,2468.0,0.32315788]
[1730697934217,0.50298781,2468.2,2468.0,0.32315788]
[1730697934367,4.82969,2468.1,2468.0,0.32315788]
[1730697934578,4.82969,2468.1,2468.0,0.32318265]
[1730697934929,4.82969,2468.1,2467.7,0.057476]
[1730697935068,4.82969,2468.1,2468.0,0.32318265]
[1730697935408,4.05195,2468.0,2467.7,0.057476]
[1730697939494,1.666136,2468.1,2467.8,1.65531186]
[1730697940208,5.717866,2468.1,2467.8,1.65531186]
[1730697940996,9.769656,2468.1,2467.8,1.65531186]
[1730697942275,5.717866,2468.1,2467.8,1.65531186]
[1730697942609,9.769706,2468.1,2467.8,1.65531186]
[1730697942988,5.0288706,2468.0,2467.7,0.057476]
[1730697943186,4.05207,2467.9,2467.7,0.057476]
[1730697944682,4.05207,2467.9,2467.8,0.32348036]
[1730697945018,0.9769706,2468.0,2467.7,0.057476]
[1730697945019,5.0288306,2468.0,2467.7,0.057476]
[1730697945219,5.0288306,2468.0,2467.8,0.32348036]
[1730697945381,5.0288306,2468.0,2467.7,0.057476]
[1730697945573,5.0288306,2468.0,2467.8,0.32348036]
[1730697945774,5.0288306,2468.0,2467.7,0.057476]
[1730697946014,5.0288306,2468.0,2467.8,0.32348036]
[1730697946228,5.0288306,2468.0,2467.7,0.057476]
[1730697946403,5.0288306,2468.0,2467.8,0.32348036]
[1730697946605,5.0288306,2468.0,2467.7,0.057476]
[1730697946802,5.0288306,2468.0,2467.8,0.32348036]
[1730697947119,5.0288306,2468.0,2467.7,0.057476]
[1730697947331,5.0288306,2468.0,2467.9,0.32334565]
[1730697947626,0.9769706,2468.0,2467.9,0.32334565]
[1730697947821,0.778,2468.1,2467.8,5.70749186]
[1730697948022,4.87921,2468.4,2468.0,1.65531186]
[1730697948226,4.87921,2468.4,2468.1,0.32307627]
[1730697948408,2.020918,2468.4,2468.1,0.32307627]
[1730697948612,4.87919,2468.4,2468.1,0.32307627]
[1730697949095,4.0514,2468.3,2468.1,0.32307627]
[1730697949519,0.8279,2468.4,2468.1,0.32307627]
[1730697952511,4.0511,2468.5,2468.2,1.65531186]
[1730697952842,4.0509,2468.6,2468.3,0.32281045]
[1730697953353,4.0509,2468.6,2468.2,1.65531186]
[1730697953501,4.0509,2468.6,2468.4,0.32266401]
[1730697953704,4.0509,2468.6,2468.3,0.32279866]
[1730697953941,8.1019,2468.6,2468.5,0.32252937]
[1730697954102,4.05104,2468.5,2468.4,0.32266401]
[1730697954302,4.05104,2468.5,2468.2,1.65531186]
[1730697955544,4.05104,2468.5,2468.0,6.17645186]
[1730697959252,0.8279,2468.4,2468.0,6.17645186]
[1730697959634,0.8279,2468.4,2468.1,0.32303617]
[1730697959952,4.87911,2468.4,2468.1,0.32303617]
[1730697961232,4.05143,2468.3,2468.1,0.32303617]
[1730697961432,4.05153,2468.2,2468.1,0.32303617]
[1730697961778,4.05205,2467.9,2467.7,0.057476]
[1730697962977,4.88009,2467.8,2467.7,0.057476]
[1730697963175,0.8279,2467.8,2467.7,0.057476]
[1730697965855,4.05205,2467.9,2467.7,0.057476]
[1730697967240,4.945224,2467.9,2467.7,0.057476]
[1730697970078,4.05219,2467.8,2467.7,0.057476]
[1730697970455,4.85669,2467.8,2467.7,0.057476]
[1730697970642,7.85669,2467.8,2467.7,0.057476]
[1730697974170,4.945224,2467.9,2467.7,0.057476]
[1730697974171,4.945264,2467.9,2467.7,0.057476]
[1730697974388,3.0,2468.0,2467.7,0.057476]
[1730697974689,4.05219,2467.8,2467.7,0.057476]
[1730697975036,4.05197,2468.0,2467.7,0.057476]
[1730697975037,4.05204,2467.9,2467.7,0.057476]
[1730697975263,8.995001,2467.9,2467.7,0.057476]
[1730697975482,4.942891,2467.9,2467.7,0.057476]
[1730697976042,5.57742314,2467.9,2467.7,0.057476]
[1730697976749,4.05219,2467.8,2467.7,0.057476]
[1730697976954,5.57742314,2467.9,2467.7,0.057476]
[1730697977281,0.55774231,2467.8,2467.7,0.057476]
[1730697977479,4.68657214,2467.9,2467.7,0.057476]
[1730697977642,0.63453214,2467.9,2467.7,0.057476]
[1730697977985,4.68658214,2467.9,2467.7,0.057476]
[1730697978480,4.85669,2467.8,2467.7,0.057476]
[1730697980080,7.85669,2467.8,2467.7,0.057476]
[1730697980384,9.11101721,2467.8,2467.7,0.057476]
[1730697983275,8.30651721,2467.8,2467.7,0.057476]
[1730697983866,9.11781721,2467.8,2467.7,0.057476]
[1730697985258,5.06562721,2467.8,2467.7,0.057476]
[1730697985676,4.25432721,2467.8,2467.7,0.057476]
[1730697989882,0.8113,2468.2,2467.8,4.05219]
[1730697990104,0.8113,2468.2,2467.7,4.90276319]
[1730697990310,4.05171,2468.1,2467.9,0.32347777]
[1730697990610,4.05171,2468.1,2467.7,4.579016]
[1730697990611,4.05171,2468.1,2467.8,0.32361248]
[1730697990907,4.05171,2468.1,2468.0,0.32334308]
[1730697991107,4.943152,2468.1,2467.9,0.32347777]
[1730697991339,4.943152,2468.1,2468.0,0.32334308]
[1730697991816,4.943152,2468.1,2467.7,4.579016]
[1730697992110,4.05171,2468.1,2467.7,4.579016]
[1730697992512,4.05171,2468.1,2467.8,0.32361248]
[1730697992878,4.05171,2468.1,2467.7,4.579016]
[1730697993192,4.05171,2468.1,2467.9,0.32347777]
[1730697993377,4.05171,2468.1,2467.8,0.32361248]
[1730697993683,4.05171,2468.1,2468.0,0.32334308]
[1730697993890,4.943152,2468.1,2467.9,0.32347777]
[1730697994189,4.943152,2468.1,2468.0,0.32334308]
[1730697994491,4.943152,2468.1,2467.7,4.579016]
[1730697994677,4.05171,2468.1,2468.0,0.32334308]
[1730697994882,4.05171,2468.1,2467.7,4.579016]
[1730697995092,4.0519,2468.0,2467.7,0.526776]
[1730697995294,4.0519,2468.0,2467.8,0.32361248]
[1730697995598,4.0519,2468.0,2467.7,0.057476]
[1730697995832,4.0519,2468.0,2467.8,0.32361248]
[1730697996134,4.943391,2468.0,2467.7,0.057476]
[1730697996443,4.943391,2468.0,2467.8,0.32361248]
[1730697996609,4.943391,2468.0,2467.7,0.057476]
[1730697996814,4.943391,2468.0,2467.8,0.32361248]
[1730697997007,4.943391,2468.0,2467.7,0.057476]
[1730697997212,4.943391,2468.0,2467.8,0.32361248]
[1730697997541,4.943391,2468.0,2467.7,0.057476]
[1730697997542,1.7108101,2467.9,2467.7,0.057476]
[1730697997896,4.05219,2467.8,2467.7,0.057476]
[1730698001443,4.87939,2467.8,2467.7,0.057476]
[1730698004663,4.87939,2467.8,2467.7,0.38116891]
[1730698011974,7.87939,2467.8,2467.7,0.38116891]
[1730698012273,9.16248601,2467.8,2467.7,0.38116891]
[1730698015778,10.81779787,2467.8,2467.7,0.057476]
[1730698015996,9.16248601,2467.8,2467.7,0.057476]
[1730698016488,9.16248601,2467.8,2467.7,0.38123027]
[1730698020687,4.9515701,2467.9,2467.7,0.38123027]
[1730698020858,0.8272,2468.1,2467.7,0.85053027]
[1730698021060,1.52758576,2468.4,2467.7,0.85053027]
[1730698021061,4.0521,2467.9,2467.7,0.85053027]
[1730698022083,4.05177,2468.1,2467.7,0.85053027]
[1730698022408,7.05199,2468.0,2467.7,0.85053027]
[1730698023395,4.05205,2467.9,2467.7,0.85053027]
[1730698024107,7.05199,2468.0,2467.7,0.85053027]
[1730698024307,7.05195,2468.0,2467.7,0.85053027]
[1730698024472,11.10395,2468.0,2467.7,0.85053027]
[1730698024871,7.05195,2468.0,2467.7,0.85053027]
[1730698027295,4.05195,2468.0,2467.7,0.85053027]
[1730698027505,8.10391,2468.0,2467.7,0.85053027]
[1730698027715,4.05195,2468.0,2467.7,0.85053027]
[1730698030424,4.0517,2468.1,2467.7,1.91163148]
[1730698030886,4.0517,2468.1,2467.7,5.96397148]
[1730698031697,4.68591376,2468.4,2467.8,2.12461186]
[1730698031903,4.68591376,2468.4,2467.7,1.52337137]
[1730698031904,4.68589376,2468.4,2468.1,0.4693]
[1730698032301,0.63457376,2468.4,2468.2,0.32302416]
[1730698032889,0.63457376,2468.4,2468.3,0.4693]
[1730698033288,0.63457376,2468.4,2468.3,0.79218831]
[1730698033803,0.63457376,2468.4,2468.3,5.49347633]
[1730698034015,4.05047,2468.9,2468.4,4.52048]
[1730698034224,0.63440917,2468.9,2468.6,0.4693]
[1730698034394,0.63440917,2468.9,2468.6,4.52014]
[1730698034588,0.63440917,2468.9,2468.7,0.32225425]
[1730698034589,4.05039,2468.9,2468.7,0.32225425]
[1730698035983,4.05023,2469.0,2468.7,0.32225425]
[1730698037111,0.7535,2469.1,2468.7,0.32225425]
[1730698037312,3.0,2469.0,2468.7,0.32225425]
[1730698037820,3.0,2469.1,2468.7,4.37295425]
[1730698038202,4.05032,2469.0,2468.8,0.4693]
[1730698038418,4.05032,2469.0,2468.8,0.79136776]
[1730698038798,7.05021,2469.1,2468.8,0.79136776]
[1730698039200,11.10042,2469.1,2468.8,0.79136776]
[1730698039440,7.05021,2469.1,2468.8,0.79136776]
[1730698039720,4.05022,2469.0,2468.8,0.79136776]
[1730698039932,4.05038,2468.9,2468.8,0.79136776]
[1730698040101,4.05038,2468.9,2468.8,0.32206776]
[1730698040488,4.05064,2468.8,2468.5,0.4693]
[1730698043294,4.05072,2468.7,2468.5,0.4693]
[1730698043625,4.05072,2468.7,2468.3,6.17589186]
[1730698044037,4.05096,2468.6,2468.3,0.4693]
[1730698044362,4.05114,2468.5,2468.1,0.4693]
[1730698044498,4.85286,2468.6,2468.1,0.4681759]
[1730698044701,4.05122,2468.4,2468.1,0.4681759]
[1730698045213,4.05104,2468.5,2468.1,0.4681759]
[1730698045625,4.05104,2468.5,2468.1,4.5198559]
[1730698047402,4.05104,2468.5,2468.1,0.4681759]
[1730698047813,8.587524,2468.5,2468.1,0.4681759]
[1730698048032,8.587524,2468.5,2468.0,4.05185]
[1730698048246,4.05145,2468.3,2467.9,0.4682]
[1730698048402,4.85335,2468.3,2467.9,0.4682]
[1730698049406,4.05154,2468.2,2467.9,0.4682]
[1730698049601,4.05154,2468.2,2467.7,2.18098786]
[1730698049939,4.05199,2468.0,2467.7,0.525676]
[1730698050100,1.7409004,2468.3,2467.7,0.525676]
[1730698050101,4.05178,2468.1,2467.7,0.525676]
[1730698050296,4.05178,2468.1,2467.7,4.577996]
[1730698050513,4.05178,2468.1,2467.7,6.23330786]
[1730698050800,4.85339,2468.3,2467.7,6.23330786]
[1730698051000,4.85339,2468.3,2467.8,4.05211]
[1730698051001,4.85337,2468.3,2467.8,4.05211]
[1730698051209,4.05147,2468.3,2467.9,5.70729186]
[1730698051444,4.05147,2468.3,2467.9,1.65531186]
[1730698053627,4.05147,2468.3,2468.0,0.32319681]
[1730698055227,8.10294,2468.3,2468.0,0.32319681]
[1730698055434,9.293424,2468.3,2467.8,4.05211]
[1730698055750,4.05147,2468.3,2468.1,0.32306212]
[1730698055909,4.05147,2468.3,2467.8,4.0521]
[1730698056304,8.10292,2468.3,2467.9,0.3233315]
[1730698057012,8.10292,2468.3,2468.0,0.4682]
[1730698057013,3.0,2468.3,2468.0,0.4682]
[1730698057217,3.0,2468.3,2468.0,4.84323681]
[1730698057814,3.0,2468.3,2468.0,0.79139681]
[1730698058017,7.05136,2468.4,2468.0,0.79139681]
[1730698058740,3.0,2468.4,2468.0,0.79139681]
[1730698058951,7.0512,2468.4,2468.0,0.79139681]
[1730698059554,0.7936,2468.7,2468.1,5.70691186]
[1730698059852,4.8444,2468.7,2468.2,0.79116045]
[1730698060955,4.05097,2468.6,2468.2,0.79116045]
[1730698061717,4.8444,2468.7,2468.2,0.79116045]
[1730698061960,4.05129,2468.4,2468.2,0.32296045]
[1730698062136,4.05129,2468.4,2468.0,0.4682]
[1730698062319,4.05129,2468.4,2468.1,0.32306799]
[1730698062931,4.05107,2468.5,2468.1,0.32306799]
[1730698065129,5.019063,2468.5,2468.1,0.32306799]
[1730698066362,4.0513,2468.4,2468.1,0.32306799]
[1730698067427,4.84498,2468.3,2468.1,0.32306799]
[1730698067631,0.7936,2468.3,2467.9,5.70733186]
[1730698067856,0.7936,2468.3,2468.2,0.32294394]
[1730698068059,0.7936,2468.3,2467.9,1.65531186]
[1730698068262,0.7936,2468.3,2468.2,0.32294396]
[1730698068459,0.7936,2468.3,2467.9,5.70733186]
[1730698068661,0.7936,2468.3,2468.2,0.32294396]
[1730698068860,0.7936,2468.3,2467.9,1.65531186]
[1730698069065,0.7936,2468.3,2468.2,0.32294396]
[1730698069361,0.7936,2468.3,2468.2,0.32293924]
[1730698069579,0.7936,2468.3,2467.8,8.57236]
[1730698069865,4.05154,2468.2,2467.8,5.54878479]
[1730698070072,4.05154,2468.2,2467.8,4.52027]
[1730698072753,4.84501,2468.3,2467.8,4.52027]
[1730698074475,4.05153,2468.2,2467.8,0.4682]
[1730698079435,4.84501,2468.3,2467.7,1.71278786]
[1730698079639,4.05165,2468.2,2467.7,1.71278786]
[1730698079986,4.05165,2468.2,2467.8,0.32349805]
[1730698080135,4.941316,2468.2,2467.7,5.76507786]
[1730698080340,4.941316,2468.2,2467.8,0.32349805]
[1730698080539,4.941316,2468.2,2467.7,5.76507786]
[1730698080763,4.941316,2468.2,2467.8,0.32351338]
[1730698080970,4.941316,2468.2,2467.7,5.76507786]
[1730698081174,4.941316,2468.2,2467.8,0.32351338]
[1730698081345,4.941316,2468.2,2467.7,5.76507786]
[1730698081545,4.05174,2468.1,2467.8,0.32351338]
[1730698081745,4.05174,2468.1,2467.7,1.71278786]
[1730698082055,4.05174,2468.1,2467.8,0.32351338]
[1730698082245,5.0304056,2468.1,2467.7,1.71278786]
[1730698082449,5.0304056,2468.1,2467.9,0.32337868]
[1730698082693,0.9786656,2468.1,2467.7,1.71278786]
[1730698082881,4.05165,2468.2,2468.0,0.32324398]
[1730698083182,8.10333,2468.2,2468.1,0.3231093]
[1730698083350,8.10333,2468.2,2467.7,1.71278786]
[1730698083556,4.05165,2468.2,2467.8,0.32351338]
[1730698083772,4.05165,2468.2,2467.7,5.76512786]
[1730698083983,4.05165,2468.2,2467.8,0.32351338]
[1730698084158,8.587815,2468.2,2467.7,5.76512786]
[1730698084358,8.587815,2468.2,2467.8,0.32351338]
[1730698084596,8.587815,2468.2,2467.7,5.76512786]
[1730698084597,4.536165,2468.2,2467.7,5.76512786]
[1730698084756,4.536165,2468.2,2467.9,0.32337868]
[1730698085104,0.51720397,2468.1,2467.8,4.05216]
[1730698085394,4.05163,2468.2,2467.9,0.32339165]
[1730698086495,4.05163,2468.2,2467.7,1.71278786]
[1730698086652,4.05163,2468.2,2468.0,0.32325696]
[1730698086857,8.10324,2468.2,2467.7,1.71278786]
[1730698087092,7.05161,2468.2,2468.1,0.32312228]
[1730698087259,12.292894,2468.2,2467.7,1.71278786]
[1730698087473,8.241264,2468.2,2468.1,0.32312228]
[1730698087675,8.241264,2468.2,2467.7,1.71278786]
[1730698087979,4.05176,2468.1,2467.7,1.71278786]
[1730698090389,4.05176,2468.1,2467.8,0.1781088]
[1730698090588,4.05176,2468.1,2467.7,1.71278786]
[1730698090790,4.05176,2468.1,2467.8,0.1781088]
[1730698091008,4.05176,2468.1,2467.7,1.71278786]
[1730698092202,4.05176,2468.1,2467.8,0.17811018]
[1730698092385,4.05176,2468.1,2467.7,0.057476]
[1730698092386,0.7659,2468.0,2467.7,0.057476]
[1730698094056,4.05213,2467.9,2467.7,0.057476]
[1730698094790,4.05213,2467.9,2467.8,0.32352636]
[1730698094956,4.05213,2467.9,2467.7,0.057476]
[1730698095170,4.05213,2467.9,2467.8,0.32352636]
[1730698095373,4.05213,2467.9,2467.7,0.057476]
[1730698095604,4.05213,2467.9,2467.8,0.32357945]
[1730698095777,4.05213,2467.9,2467.7,0.057476]
[1730698095961,4.05213,2467.9,2467.8,0.32357945]
[1730698096300,0.7659,2468.0,2467.7,0.057476]
[1730698096515,0.7659,2468.0,2467.8,0.32357945]
[1730698096898,0.7659,2468.0,2467.7,0.057476]
[1730698097089,4.81776,2468.0,2467.9,0.3234471]
[1730698097291,6.004713,2468.0,2467.7,0.057476]
[1730698097587,6.004713,2468.0,2467.8,0.32357355]
[1730698097811,6.004713,2468.0,2467.7,0.057476]
[1730698098122,6.004713,2468.0,2467.9,0.32343885]
[1730698098326,1.952853,2468.0,2467.8,0.32357355]
[1730698098502,4.05177,2468.1,2467.7,1.71278786]
[1730698098503,4.05178,2468.1,2467.9,0.32343885]
[1730698098686,4.81768,2468.1,2467.9,0.32343885]
[1730698098887,4.81768,2468.1,2467.7,0.057476]
[1730698099386,5.704595,2468.1,2467.8,0.32357473]
[1730698099621,5.704595,2468.1,2467.7,0.057476]
[1730698100124,4.05202,2467.9,2467.8,0.32357473]
[1730698100423,4.05202,2467.9,2467.7,0.057476]
[1730698100721,4.05202,2467.9,2467.8,0.32357473]
[1730698100929,5.39114181,2467.9,2467.8,0.32357473]
[1730698101085,5.39114181,2467.9,2467.7,0.057476]
[1730698101288,5.39114181,2467.9,2467.8,0.32357473]
[1730698101289,8.39114181,2467.9,2467.8,0.32357473]
[1730698101542,7.05219,2467.8,2467.7,0.057476]
[1730698101830,9.83107149,2467.8,2467.7,0.057476]
[1730698109646,9.83107149,2467.8,2467.7,0.38121728]
[1730698112324,7.05219,2467.8,2467.7,0.38121728]
[1730698114113,8.10414,2467.9,2467.7,0.38121728]
[1730698114632,4.05219,2467.8,2467.7,0.38121728]
[1730698117111,4.05202,2467.9,2467.7,0.38121728]
[1730698117356,4.05219,2467.8,2467.7,0.38121728]
[1730698118041,8.1042,2467.9,2467.7,0.38121728]
[1730698118230,4.05219,2467.8,2467.7,0.38121728]
[1730698119823,5.81578131,2467.8,2467.7,0.38121728]
[1730698127277,4.05202,2467.9,2467.7,0.38121728]
[1730698127278,8.10419,2467.9,2467.7,0.38121728]
[1730698127453,4.05219,2467.8,2467.7,0.38121728]
[1730698140173,4.86039,2467.8,2467.7,0.38121728]
[1730698145664,4.05219,2467.8,2467.7,0.38121728]
[1730698145974,4.05203,2467.9,2467.7,0.38121728]
[1730698146186,8.10415,2467.9,2467.7,0.38121728]
[1730698147259,4.05219,2467.8,2467.7,0.38121728]
[1730698153941,4.86949,2467.8,2467.7,0.38121728]
[1730698154138,5.90592231,2467.8,2467.7,0.38121728]
[1730698154341,8.90592231,2467.8,2467.7,0.38121728]
[1730698158459,8.90592231,2467.8,2467.7,0.057476]
[1730698177450,8.90592231,2467.8,2467.7,0.38130343]
[1730698179365,8.90592231,2467.8,2467.7,0.057476]
[1730698187421,8.08862231,2467.8,2467.7,0.057476]
[1730698187634,7.05219,2467.8,2467.7,0.525676]
[1730698188060,7.05219,2467.8,2467.7,0.84951289]
[1730698188271,7.05219,2467.8,2467.7,0.38131289]
[1730698189240,8.22607231,2467.8,2467.7,0.38131289]
[1730698189737,8.22607231,2467.8,2467.7,0.057476]
[1730698189939,8.22607231,2467.8,2467.7,0.3813058]
[1730698190464,8.22607231,2467.8,2467.7,0.057476]
[1730698199862,9.88138417,2467.8,2467.7,0.057476]
[1730698200063,10.70638417,2467.8,2467.7,0.057476]
[1730698200991,12.91169603,2467.8,2467.7,0.057476]
[1730698201163,12.92169603,2467.8,2467.7,6e-06]
[1730698201366,11.26638417,2467.8,2467.7,6e-06]
[1730698201706,10.71638417,2467.8,2467.7,6e-06]
[1730698201908,10.70638417,2467.8,2467.7,6e-06]
[1730698202095,9.05107231,2467.8,2467.7,6e-06]
[1730698202263,7.05219,2467.8,2467.7,6e-06]
[1730698202963,7.87719,2467.8,2467.7,6e-06]
[1730698203177,7.05219,2467.8,2467.7,6e-06]
[1730698204522,7.05219,2467.8,2467.7,0.468206]
[1730698205306,3.0,2467.8,2467.7,0.468206]
[1730698205509,0.63460307,2468.0,2467.7,0.68055779]
[1730698205722,0.63460307,2468.0,2467.9,2.12351186]
[1730698205919,0.63460307,2468.0,2467.7,4.26459779]
[1730698205920,0.825,2468.5,2467.7,2.33586965]
[1730698206104,4.05198,2468.0,2467.7,2.33586965]
[1730698206323,4.05179,2468.1,2467.7,2.33586965]
[1730698206506,4.05179,2468.1,2467.8,0.23358696]
[1730698206707,4.05147,2468.3,2467.9,0.4682]
[1730698206889,0.63460418,2468.6,2468.0,0.4682]
[1730698207293,4.05154,2468.2,2468.0,0.4682]
[1730698208937,3.0,2468.3,2468.0,0.4682]
[1730698209106,3.0,2468.3,2468.0,0.70390988]
[1730698210344,4.68555418,2468.6,2468.0,0.70390988]
[1730698210345,3.0,2468.5,2468.1,0.4682]
[1730698210633,3.0,2468.5,2468.1,2.12351186]
[1730698210834,3.0,2468.5,2468.2,0.4682]
[1730698211535,0.63460418,2468.6,2468.4,0.4682]
[1730698211694,4.68559418,2468.6,2468.4,0.4682]
[1730698212092,4.05099,2468.6,2468.4,0.4682]
[1730698212535,4.05072,2468.7,2468.4,0.4682]
[1730698212836,4.05097,2468.6,2468.4,0.4682]
[1730698213667,4.05072,2468.7,2468.4,0.4682]
[1730698214335,8.10157,2468.7,2468.4,0.4682]
[1730698214533,4.05093,2468.6,2468.4,0.4682]
[1730698215367,4.05072,2468.7,2468.5,0.32230693]
[1730698215535,4.05072,2468.7,2468.4,0.4682]
[1730698215748,7.05072,2468.7,2468.6,0.32214635]
[1730698215948,4.05072,2468.7,2468.4,0.4682]
[1730698216263,3.0,2468.8,2468.4,1.49084719]
[1730698216591,7.05066,2468.8,2468.5,0.32228098]
[1730698217757,3.0,2468.8,2468.5,1.97759284]
[1730698217957,4.05048,2468.9,2468.5,1.97759284]
[1730698218158,8.10101,2468.9,2468.6,0.4682]
[1730698218361,8.10101,2468.9,2468.6,0.79024136]
[1730698218669,4.05048,2468.9,2468.6,0.79024136]
[1730698219575,8.10096,2468.9,2468.6,0.79024136]
[1730698220684,8.10095,2468.9,2468.6,0.79024136]
[1730698220908,4.05055,2468.8,2468.6,0.79024136]
[1730698221107,4.05047,2468.9,2468.6,0.79024136]
[1730698221685,8.49742862,2469.1,2468.6,0.79024136]
[1730698221890,7.05023,2469.0,2468.6,1.5421794]
[1730698223417,4.68456627,2469.1,2468.7,1.65531186]
[1730698223619,7.04993,2469.2,2468.8,0.4682]
[1730698223907,7.04993,2469.2,2468.8,0.77888395]
[1730698224083,4.05006,2469.1,2468.8,1.90765034]
[1730698224587,7.04998,2469.2,2468.8,1.90765034]
[1730698225118,3.0,2469.2,2468.8,1.90765034]
[1730698225620,4.68420485,2469.3,2469.0,0.4682]
[1730698225621,0.63437485,2469.3,2469.0,0.4682]
[1730698225919,0.63437485,2469.3,2469.1,1.65531186]
[1730698226214,0.63437485,2469.3,2469.2,0.4682]
[1730698226708,4.04917,2469.7,2469.2,0.77830361]
[1730698226709,4.04942,2469.5,2469.2,0.77830361]
[1730698227072,0.63426443,2469.6,2469.3,2.12351186]
[1730698227406,0.7785,2469.8,2469.3,0.4682]
[1730698227714,4.04934,2469.6,2469.4,0.30983451]
[1730698227920,8.0987,2469.6,2469.4,0.30983451]
[1730698228206,4.0494,2469.5,2469.4,0.30983451]
[1730698229744,8.09873,2469.6,2469.4,0.30983451]
[1730698230053,4.0494,2469.5,2469.4,0.30983451]
[1730698230715,4.04934,2469.6,2469.4,0.30983451]
[1730698231047,11.09804,2469.8,2469.4,0.30983451]
[1730698231199,11.09804,2469.8,2469.4,0.95814515]
[1730698231811,7.049,2469.8,2469.4,0.95814515]
[1730698232062,11.098,2469.8,2469.4,0.95814515]
[1730698232265,7.049,2469.8,2469.4,0.95814515]
[1730698232455,7.049,2469.8,2469.5,0.3081657]
[1730698232624,3.0,2469.8,2469.6,0.4682]
[1730698232964,0.63428271,2469.9,2469.7,1.65531186]
[1730698233171,4.04818,2470.3,2469.8,4.51711]
[1730698233460,4.04802,2470.4,2469.9,1.65531186]